Workbook

Sheet Raw Standout Data
M1: 2018 | N1: 2018 with 48 Rates | P1: All South IBC | R1: No South
G2: Years | H2: 2048 | I2: 2048 | J2: 2048 | K2: 2048 | L2: 2048 | M2: 2018 | N2: 2018 | O2: 2048 | P2: 2048 | Q2: 2048 | R2: 2048
G3: Scen | H3: RailBC Option | I3: RailBC Domin | J3: DruryLocal Domin | K3: No Puke | L3: No Puke_No Mill | O3: All South_Pref | P3: All South_wo_DruryBC | Q3: All South_wo_NS | R3: DM 2048+
H4: VEPM 6 | I4: VEPM 6 | J4: VEPM 6 | K4: VEPM 6 | L4: VEPM 6 | M4: VEPM 6 | N4: VEPM 6 | O4: VEPM 6 | P4: VEPM 6 | Q4: VEPM 6 | R4: VEPM 6
H5: 2048rates | I5: 2048rates | J5: 2048rates | K5: 2048rates | L5: 2048rates | M5: 2018rates | N5: 2046rates | O5: 2048rates | P5: 2048rates | Q5: 2048rates | R5: 2048rates
C6: 9 | D6: 8 | H6: 1 | I6: 2 | J6: 3 | K6: 4 | L6: 5 | M6: 6 | N6: 7 | O6: 8 | P6: 9 | Q6: 10 | R6: 11
C7: =INDEX($H7:$R7,1,C$6) -> All South_wo_DruryBC | D7: =INDEX($H7:$R7,1,D$6) -> All South_Pref | E7: Diff | F7: %Diff | H7: RailBC Option | I7: RailBC Domin | J7: DruryLocal Domin | K7: No Puke | L7: No Puke_No Mill | O7: =O3 -> All South_Pref | P7: =P3 -> All South_wo_DruryBC | Q7: =Q3 -> All South_wo_NS | R7: =R3 -> DM 2048+
H9: ~/======================================================================== | I9: ~/============================================================================================================
H10: ~/ Year 2048 | I10: ~/ Year 2048 | J10: ~/ Year 2048 | K10: ~/ Year 2048 | L10: ~/ Year 2048 | M10: ~/ Year 2018 | N10: ~/ Year 2046 | O10: ~/ Year 2048 | P10: ~/ Year 2048 | Q10: ~/ Year 2048 | R10: ~/ Year 2048 | Y10: Compare Scenarios
G11: Toll | H11: ~/ Scenario ATAP3_DBC_Pref_RailBC_m2 | I11: ~/ Scenario ATAP3_DBC_Pref_RailBC_DM_m2 | J11: ~/ Scenario ATAP3_DBC_Pref_RailBC_wo_DruryBC_m2 | K11: ~/ Scenario ATAP3_DBC_Pref_RailBC_NoPuke_v2_m2 | L11: ~/ Scenario ATAP3_DBC_Pref_RailBC_NoPuke_NoMill_v2_m2 | M11: ~/ Scenario 2018March_update_CO2 | N11: ~/ Scenario 2018March_update_CO2 | O11: ~/ Scenario ATAP3_DBC_Pref_AllSouth_m2 | P11: ~/ Scenario ATAP3_DBC_Pref_AllSouth_wo_DruryBC_m2 | Q11: ~/ Scenario ATAP3_DBC_Pref_AllSouth_wo_NS_m2 | R11: ~/ Scenario ATAP3_DBC_South_DM_RT1e_m2
G12: TDM | H12: ~/ Slot / Option 38 | I12: ~/ Slot / Option 40 | J12: ~/ Slot / Option 44 | K12: ~/ Slot / Option 52 | L12: ~/ Slot / Option 54 | M12: ~/ Slot / Option 18 | N12: ~/ Slot / Option 18 | O12: ~/ Slot / Option 88 | P12: ~/ Slot / Option 90 | Q12: ~/ Slot / Option 92 | R12: ~/ Slot / Option 92 | Y12: Base | Z12: 2 | AA12: 9 | AB12: 5 | AC12: 4 | AF12: 5 | AG12: 5 | AH12: 4 | AI12: 4 | AJ12: 6 | AL12: 3 | AM12: 9
H13: ~/ User Initials none | I13: ~/ User Initials none | J13: ~/ User Initials none | K13: ~/ User Initials none | L13: ~/ User Initials none | M13: ~/ User Initials none | N13: ~/ User Initials none | O13: ~/ User Initials none | P13: ~/ User Initials none | Q13: ~/ User Initials none | R13: ~/ User Initials none | Y13: Opt | Z13: 1 | AA13: 8 | AB13: 4 | AC13: 1 | AF13: 8 | AG13: 4 | AH13: 1 | AI13: 8 | AJ13: 7 | AL13: 1 | AM13: 8
H14: ~/ Date Run 20191113 | I14: ~/ Date Run 20191114 | J14: ~/ Date Run 20191126 | K14: ~/ Date Run 20191128 | L14: ~/ Date Run 20191128 | M14: ~/ Date Run 20190913 | N14: ~/ Date Run 20190913 | O14: ~/ Date Run 20200303 | P14: ~/ Date Run 20200303 | Q14: ~/ Date Run 20200303 | R14: ~/ Date Run 20200310
G15: EST Pop | H15: 2528313.553 | I15: 2528313.553 | J15: 2528313.553 | K15: 2528313.553 | L15: 2528313.553 | M15: 1658677.708 | N15: 1658677.708 | O15: 2528313.553 | P15: 2528313.553 | Q15: 2528313.553 | R15: 2528313.553 | S15: 2528313.553 | W15: Last Column | X15: R | AF15: Strategic | AG15: Mill Rd | AH15: Pukex | AI15: Pukex | AJ15: Rates | AL15: Drury | AM15: Drury
B16: CO Emissions - kg/24hr | G16: CO2/Pop | H16: =+H24/H15 -> 1.756918557 | I16: =+I24/I15 -> 1.762015631 | J16: 1.758230697 | K16: 1.756741364 | L16: 1.755833051 | M16: 5.429417635 | N16: 2.032356246 | O16: 1.756345646 | P16: 1.759130704 | Q16: 1.756812953 | R16: 1.769847926 | S16: 0 | W16: Rows | Z16: Rail | AA16: Drury | AB16: Mill Rd | AC16: Pukex | AD16: Combined
B17: CO Total | C17: =INDEX($H17:$R17,1,C$6) -> 7196.89404 | D17: =INDEX($H17:$R17,1,D$6) -> 7180.05371 | E17: =D17-C17 -> -16.84033 | F17: =E17/C17 -> -0.002339944135 | H17: 7181.34277 | I17: 7205.65429 | J17: 7191.97753 | K17: 7180.05126 | L17: 7173.72705 | M17: 89166.6015 | N17: 5737.11767 | O17: 7180.05371 | P17: 7196.89404 | Q17: 7181.71142 | R17: 7211.74951 | V17: 17 | W17: =+"H"&V17&":"&$X$15&V17 -> H17:R17 | Y17: CO, kg | Z17: =INDEX(INDIRECT($W17),1,Z$13)-INDEX(INDIRECT($W17),1,Z$12) -> -24.31152 | AA17: =INDEX(INDIRECT($W17),1,AA$13)-INDEX(INDIRECT($W17),1,AA$12) -> -16.84033 | AB17: =INDEX(INDIRECT($W17),1,AB$13)-INDEX(INDIRECT($W17),1,AB$12) -> 6.32421 | AC17: =INDEX(INDIRECT($W17),1,AC$13)-INDEX(INDIRECT($W17),1,AC$12) -> 1.29151 | AD17: =SUM(Z17:AB17) -> -34.82764 | AF17: =INDEX(INDIRECT($W17),1,AF$13)-INDEX(INDIRECT($W17),1,AF$12) -> 6.32666 | AG17: =INDEX(INDIRECT($W17),1,AG$13)-INDEX(INDIRECT($W17),1,AG$12) -> 6.32421 | AH17: =INDEX(INDIRECT($W17),1,AH$13)-INDEX(INDIRECT($W17),1,AH$12) -> 1.29151 | AI17: =INDEX(INDIRECT($W17),1,AI$13)-INDEX(INDIRECT($W17),1,AI$12) -> 0.00245 | AJ17: =INDEX(INDIRECT($W17),1,AJ$13)-INDEX(INDIRECT($W17),1,AJ$12) -> -83429.48383 | AL17: =INDEX(INDIRECT($W17),1,AL$13)-INDEX(INDIRECT($W17),1,AL$12) -> -10.63476 | AM17: =INDEX(INDIRECT($W17),1,AM$13)-INDEX(INDIRECT($W17),1,AM$12) -> -16.84033
B18: CO Total/capita | C18: =INDEX($H18:$R18,1,C$6) -> 0.002847 | D18: =INDEX($H18:$R18,1,D$6) -> 0.00284 | E18: =D18-C18 -> -7e-06 | F18: =E18/C18 -> -0.002458728486 | H18: 0.00284 | I18: 0.00285 | J18: 0.002845 | K18: 0.00284 | L18: 0.002837 | M18: 0.053244 | N18: 0.003426 | O18: 0.00284 | P18: 0.002847 | Q18: 0.002841 | R18: 0.002852 | V18: 24 | W18: =+"H"&V18&":"&$X$15&V18 -> H24:R24 | Y18: CO2, tonnes | Z18: =(INDEX(INDIRECT($W18),1,Z$13)-INDEX(INDIRECT($W18),1,Z$12))/1000 -> -12.887 | AA18: =(INDEX(INDIRECT($W18),1,AA$13)-INDEX(INDIRECT($W18),1,AA$12))/1000 -> -7.0415 | AB18: =(INDEX(INDIRECT($W18),1,AB$13)-INDEX(INDIRECT($W18),1,AB$12))/1000 -> 2.2965 | AC18: =(INDEX(INDIRECT($W18),1,AC$13)-INDEX(INDIRECT($W18),1,AC$12))/1000 -> 0.448 | AD18: =SUM(Z18:AB18) -> -17.632 | AF18: =(INDEX(INDIRECT($W18),1,AF$13)-INDEX(INDIRECT($W18),1,AF$12))/1000 -> 1.296 | AG18: =(INDEX(INDIRECT($W18),1,AG$13)-INDEX(INDIRECT($W18),1,AG$12))/1000 -> 2.2965 | AH18: =(INDEX(INDIRECT($W18),1,AH$13)-INDEX(INDIRECT($W18),1,AH$12))/1000 -> 0.448 | AI18: =(INDEX(INDIRECT($W18),1,AI$13)-INDEX(INDIRECT($W18),1,AI$12))/1000 -> -1.0005 | AJ18: =(INDEX(INDIRECT($W18),1,AJ$13)-INDEX(INDIRECT($W18),1,AJ$12))/1000 -> -5634.63 | AL18: =(INDEX(INDIRECT($W18),1,AL$13)-INDEX(INDIRECT($W18),1,AL$12))/1000 -> -3.3175 | AM18: =(INDEX(INDIRECT($W18),1,AM$13)-INDEX(INDIRECT($W18),1,AM$12))/1000 -> -7.0415
B19: CO Total less than 8.5t | C19: 6622.05468 | D19: 6604.84179 | E19: -17.21289 | F19: -0.002599327676 | H19: 6605.61425 | I19: 6628.875 | J19: 6617.15283 | K19: 6603.66259 | L19: 6596.92578 | M19: 85549.8437 | N19: 5318.82275 | O19: 6604.84179 | P19: 6622.05468 | Q19: 6606.33886 | R19: 6630.30273 | V19: 31 | W19: H31:R31 | Y19: VOC, kg | Z19: =INDEX(INDIRECT($W19),1,Z$13)-INDEX(INDIRECT($W19),1,Z$12) -> -2.534973 | AA19: -1.73352 | AB19: -0.154724 | AC19: -0.441773 | AD19: -4.423217 | AF19: =INDEX(INDIRECT($W19),1,AF$13)-INDEX(INDIRECT($W19),1,AF$12) -> -0.899231 | AG19: -0.154724 | AH19: -0.441773 | AI19: -0.744507 | AJ19: -6958.848961 | AL19: -0.873291 | AM19: -1.73352
B20: CO Total more than 8.5t | C20: 525.612976 | D20: 524.910644 | E20: -0.702332 | F20: -0.001336215109 | H20: 525.343811 | I20: 526.300231 | J20: 525.517761 | K20: 525.989379 | L20: 526.479858 | M20: 3388.36254 | N20: 391.040313 | O20: 524.910644 | P20: 525.612976 | Q20: 525.039306 | R20: 533.328247 | V20: 38 | W20: H38:R38 | Y20: NOX, kg | Z20: -16.72608 | AA20: -8.42676 | AB20: 4.31836 | AC20: -0.08497 | AD20: -20.83448 | AF20: 3.10693 | AG20: 4.31836 | AH20: -0.08497 | AI20: -1.21143 | AJ20: -26039.02733 | AL20: -3.8584 | AM20: -8.42676
B21: CO Buses | C21: 49.226329 | D21: 50.301437 | E21: 1.075108 | F21: 0.02184010106 | H21: 50.384887 | I21: 50.479713 | J21: 49.306922 | K21: 50.399608 | L21: 50.321926 | M21: 228.402618 | N21: 27.253963 | O21: 50.301437 | P21: 49.226329 | Q21: 50.334014 | R21: 48.117904 | V21: 45 | W21: H45:R45 | Y21: NO2, kg | Z21: -2.8078 | AA21: -1.716553 | AB21: 1.269653 | AC21: 0.472534 | AD21: -3.2547 | AF21: 1.691894 | AG21: 1.269653 | AH21: 0.472534 | AI21: 0.422241 | AJ21: -4604.518793 | AL21: -1.09436 | AM21: -1.716553
V22: 59 | W22: H59:R59 | Y22: PM10, kg | Z22: -3.702088 | AA22: -2.871582 | AB22: -0.092286 | AC22: -1.113098 | AD22: -6.665956 | AF22: -1.675476 | AG22: -0.092286 | AH22: -1.113098 | AI22: -1.58319 | AJ22: -48.442383 | AL22: -1.382141 | AM22: -2.871582
B23: CO2 Emissions - kg/24hr | V23: 66 | W23: H66:R66 | Y23: PM2.5, kg | Z23: -0.17723 | AA23: -0.056122 | AB23: 0.00869 | AC23: -0.025093 | AD23: -0.224662 | AF23: -0.052178 | AG23: 0.00869 | AH23: -0.025093 | AI23: -0.060868 | AJ23: -1196.484588 | AL23: 0.004166 | AM23: -0.056122
B24: CO2 Total | C24: =INDEX($H24:$R24,1,C$6) -> 4447634 | D24: =INDEX($H24:$R24,1,D$6) -> 4440592.5 | E24: -7041.5 | F24: -0.001583201316 | G24: =+E24/1000 -> -7.0415 | H24: 4442041 | I24: 4454928 | J24: 4445358.5 | K24: 4441593 | L24: 4439296.5 | M24: 9005654 | N24: 3371024 | O24: 4440592.5 | P24: 4447634 | Q24: 4441774 | R24: 4474730.5 | V24: 80 | W24: H80:R80 | Y24: SO2, kg | Z24: 0 | AA24: 0 | AB24: 0 | AC24: 0 | AD24: 0 | AF24: 0 | AG24: 0 | AH24: 0 | AI24: 0 | AJ24: 0 | AL24: 0 | AM24: 0
B25: CO2 Total/capita | C25: =INDEX($H25:$R25,1,C$6) -> 1.759131 | D25: =INDEX($H25:$R25,1,D$6) -> 1.756346 | E25: -0.002785 | F25: -0.001583168053 | H25: 1.756919 | I25: 1.762016 | J25: 1.758231 | K25: 1.756741 | L25: 1.755833 | M25: 5.377503 | N25: 2.012923 | O25: 1.756346 | P25: 1.759131 | Q25: 1.756813 | R25: 1.769848 | V25: 87 | W25: H87:R87 | Y25: Fuel, l | Z25: -5419.75 | AA25: -3104.75 | AB25: 1072.88 | AC25: 276.75 | AD25: -7451.62 | AF25: 807.5 | AG25: 1072.88 | AH25: 276.75 | AI25: -265.38 | AJ25: -2260276 | AL25: -1568.87 | AM25: -3104.75
B26: CO2 Total less than 8.5t | C26: 2827970.5 | D26: 2819438.5 | E26: -8532 | F26: -0.003017004597 | H26: 2819681.75 | I26: 2830905.75 | J26: 2825325 | K26: 2818633.75 | L26: 2816089.5 | M26: 7298520.5 | N26: 2256484.75 | O26: 2819438.5 | P26: 2827970.5 | Q26: 2820241.75 | R26: 2846371.75 | V26: 94 | W26: H94:R94 | Y26: KVT | Z26: -149608 | AA26: -118404 | AB26: 91464 | AC26: 52732 | AD26: -176548 | AF26: 153956 | AG26: 91464 | AH26: 52732 | AI26: 62492 | AJ26: 0 | AL26: -87584 | AM26: -118404
B27: CO2 Total more than 8.5t | C27: 1498440.5 | D27: 1497255.75 | E27: -1184.75 | F27: -0.0007906553513 | H27: 1498225 | I27: 1499707.75 | J27: 1498573.25 | K27: 1498796.37 | L27: 1499289.75 | M27: 1612074.75 | N27: 1052719.75 | O27: 1497255.75 | P27: 1498440.5 | Q27: 1497519.37 | R27: 1510192.5
B28: CO2 Buses | C28: 121223.296 | D28: 123898.031 | E28: 2674.735 | F28: 0.02206452958 | H28: 124134.289 | I28: 124314.875 | J28: 121459.859 | K28: 124163.031 | L28: 123916.703 | M28: 95058.4375 | N28: 61819.5078 | O28: 123898.031 | P28: 121223.296 | Q28: 124013.187 | R28: 118166.351
B29: CO2 (Tonnes) | C29: =+C24/1000 -> 4447.634 | D29: =+D24/1000 -> 4440.5925 | E29: =D29-C29 -> -7.0415 | F29: =E29/C29 -> -0.001583201316
B30: VOC Emissions - kg/24hr
B31: VOC Total | C31: =INDEX($H31:$R31,1,C$6) -> 554.935729 | D31: =INDEX($H31:$R31,1,D$6) -> 553.202209 | E31: -1.73352 | F31: -0.003123821209 | H31: 553.504943 | I31: 556.039916 | J31: 554.378234 | K31: 553.946716 | L31: 554.10144 | M31: 7395.73339 | N31: 436.884429 | O31: 553.202209 | P31: 554.935729 | Q31: 553.420166 | R31: 564.501708
B32: VOC Total/capita | C32: =INDEX($H32:$R32,1,C$6) -> 0.000219 | D32: =INDEX($H32:$R32,1,D$6) -> 0.000219 | E32: 0 | F32: 0 | H32: 0.000219 | I32: 0.00022 | J32: 0.000219 | K32: 0.000219 | L32: 0.000219 | M32: 0.004416 | N32: 0.000261 | O32: 0.000219 | P32: 0.000219 | Q32: 0.000219 | R32: 0.000223
B33: VOC Total less than 8.5t | C33: 474.756896 | D33: 472.980224 | E33: -1.776672 | F33: -0.003742277395 | H33: 473.213653 | I33: 475.571411 | J33: 474.21466 | K33: 473.545074 | L33: 473.627441 | M33: 6952.90625 | N33: 382.891815 | O33: 472.980224 | P33: 474.756896 | Q33: 473.174713 | R33: 483.179626
B34: VOC Total more than 8.5t | C34: 72.975517 | D34: 72.862487 | E34: -0.11303 | F34: -0.001548875632 | H34: 72.920089 | I34: 73.082107 | J34: 72.948997 | K34: 73.027915 | L34: 73.110618 | M34: 410.114807 | N34: 50.225746 | O34: 72.862487 | P34: 72.975517 | Q34: 72.881721 | R34: 74.272483
B35: VOC Buses | C35: 7.203276 | D35: 7.359466 | E35: 0.15619 | F35: 0.0216831897 | H35: 7.37129 | I35: 7.386444 | J35: 7.214577 | K35: 7.373688 | L35: 7.363389 | M35: 32.712371 | N35: 3.766859 | O35: 7.359466 | P35: 7.203276 | Q35: 7.363729 | R35: 7.049631
B37: NOX Emissions - kg/24hr
B38: NOX Total | C38: =INDEX($H38:$R38,1,C$6) -> 5424.89697 | D38: =INDEX($H38:$R38,1,D$6) -> 5416.47021 | E38: -8.42676 | F38: -0.001553349316 | H38: 5417.59667 | I38: 5434.32275 | J38: 5421.45507 | K38: 5417.68164 | L38: 5413.36328 | M38: 30402.2949 | N38: 4363.26757 | O38: 5416.47021 | P38: 5424.89697 | Q38: 5417.59375 | R38: 5440.9541
B39: NOX Total/capita | C39: =INDEX($H39:$R39,1,C$6) -> 0.002146 | D39: =INDEX($H39:$R39,1,D$6) -> 0.002142 | E39: -4e-06 | F39: -0.001863932898 | H39: 0.002143 | I39: 0.002149 | J39: 0.002144 | K39: 0.002143 | L39: 0.002141 | M39: 0.018154 | N39: 0.002605 | O39: 0.002142 | P39: 0.002146 | Q39: 0.002143 | R39: 0.002152
B40: NOX Total less than 8.5t | C40: 3913.11279 | D40: 3904.71435 | E40: -8.39844 | F40: -0.002146229984 | H40: 3904.0686 | I40: 3914.81274 | J40: 3910.74414 | K40: 3899.7434 | L40: 3892.29345 | M40: 19445.166 | N40: 3313.49658 | O40: 3904.71435 | P40: 3913.11279 | Q40: 3905.26733 | R40: 3887.52392
B41: NOX Total more than 8.5t | C41: 1340.02343 | D41: 1336.32775 | E41: -3.69568 | F41: -0.002757921927 | H41: 1337.88073 | I41: 1343.39599 | J41: 1338.7583 | K41: 1342.21813 | L41: 1345.48645 | M41: 10187.4267 | N41: 951.734741 | O41: 1336.32775 | P41: 1340.02343 | Q41: 1336.86755 | R41: 1384.6444
B42: NOX Buses | C42: 171.760543 | D42: 175.427917 | E42: 3.667374 | F42: 0.02135166748 | H42: 175.647171 | I42: 176.114837 | J42: 171.952667 | K42: 175.72026 | L42: 175.583694 | M42: 769.702941 | N42: 98.036193 | O42: 175.427917 | P42: 171.760543 | Q42: 175.458404 | R42: 168.786148
B44: NO2 Emissions - kg/24hr
B45: NO2 Total | C45: =INDEX($H45:$R45,1,C$6) -> 977.333984 | D45: =INDEX($H45:$R45,1,D$6) -> 975.617431 | E45: -1.716553 | F45: -0.001756362746 | H45: 975.667724 | I45: 978.475524 | J45: 976.762084 | K45: 975.19519 | L45: 973.925537 | M45: 5430.98681 | N45: 826.468017 | O45: 975.617431 | P45: 977.333984 | Q45: 975.780761 | R45: 975.336853
B46: NO2 Total/capita | C46: =INDEX($H46:$R46,1,C$6) -> 0.000387 | D46: =INDEX($H46:$R46,1,D$6) -> 0.000386 | E46: -1e-06 | F46: -0.002583979328 | H46: 0.000386 | I46: 0.000387 | J46: 0.000386 | K46: 0.000386 | L46: 0.000385 | M46: 0.003243 | N46: 0.000494 | O46: 0.000386 | P46: 0.000387 | Q46: 0.000386 | R46: 0.000386
B47: NO2 Total less than 8.5t | C47: 826.101806 | D47: 824.387939 | E47: -1.713867 | F47: -0.002074643812 | H47: 824.260986 | I47: 826.470336 | J47: 825.637023 | K47: 823.347106 | L47: 821.764404 | M47: 4205.44677 | N47: 721.457031 | O47: 824.387939 | P47: 826.101806 | Q47: 824.494079 | R47: 819.940124
B48: NO2 Total more than 8.5t | C48: 134.052734 | D48: 133.683334 | E48: -0.3694 | F48: -0.002755631974 | H48: 133.838653 | I48: 134.390258 | J48: 133.926376 | K48: 134.272644 | L48: 134.599304 | M48: 1141.40405 | N48: 95.205856 | O48: 133.683334 | P48: 134.052734 | Q48: 133.737396 | R48: 138.514892
B49: NO2 Buses | C49: 17.179428 | D49: 17.54622 | E49: 0.366792 | F49: 0.02135065265 | H49: 17.568155 | I49: 17.614934 | J49: 17.198642 | K49: 17.575466 | L49: 17.561803 | M49: 84.135482 | N49: 9.80512 | O49: 17.54622 | P49: 17.179428 | Q49: 17.549278 | R49: 16.881889
B51: PM10E Emissions - kg/24hr
B52: PM10E Total | C52: =INDEX($H52:$R52,1,C$6) -> 0 | D52: =INDEX($H52:$R52,1,D$6) -> 0 | E52: 0
B53: PM10E Total/capita | C53: =INDEX($H53:$R53,1,C$6) -> 0 | D53: =INDEX($H53:$R53,1,D$6) -> 0 | E53: 0
B54: PM10E Total less than 8.5t | C54: 0 | D54: 0 | E54: 0
B55: PM10E Total more than 8.5t | C55: 0 | D55: 0 | E55: 0
B56: PM10E Buses | C56: 0 | D56: 0 | E56: 0
B58: PM10BT Emissions - kg/24hr
B59: PM10BT Total | C59: =INDEX($H59:$R59,1,C$6) -> 866.027893 | D59: =INDEX($H59:$R59,1,D$6) -> 863.156311 | E59: -2.871582 | F59: -0.003315807751 | H59: 863.626403 | I59: 867.328491 | J59: 865.008544 | K59: 864.739501 | L59: 864.831787 | M59: 652.844726 | N59: 604.402343 | O59: 863.156311 | P59: 866.027893 | Q59: 863.561462 | R59: 882.744384
B60: PM10BT Total/capita | C60: =INDEX($H60:$R60,1,C$6) -> 0.000343 | D60: =INDEX($H60:$R60,1,D$6) -> 0.000341 | E60: -2e-06 | F60: -0.00583090379 | H60: 0.000342 | I60: 0.000343 | J60: 0.000342 | K60: 0.000342 | L60: 0.000342 | M60: 0.00039 | N60: 0.000361 | O60: 0.000341 | P60: 0.000343 | Q60: 0.000342 | R60: 0.000349
B61: PM10BT Total less than 8.5t | C61: 735.005981 | D61: 732.070434 | E61: -2.935547 | F61: -0.003993908997 | H61: 732.459716 | I61: 735.962341 | J61: 734.031982 | K61: 733.309509 | L61: 733.272399 | M61: 515.85913 | N61: 515.85913 | O61: 732.070434 | P61: 735.005981 | Q61: 732.419128 | R61: 750.262573
B62: PM10BT Total more than 8.5t | C62: 121.606346 | D62: 121.44963 | E62: -0.156716 | F62: -0.00128871564 | H62: 121.516555 | I62: 121.711708 | J62: 121.544281 | K62: 121.779747 | L62: 121.935943 | M62: 129.877761 | N62: 83.947746 | O62: 121.44963 | P62: 121.606346 | Q62: 121.49546 | R62: 123.38179
B63: PM10BT Buses | C63: 9.415541 | D63: 9.636292 | E63: 0.220751 | F63: 0.02344538673 | H63: 9.650155 | I63: 9.654482 | J63: 9.432277 | K63: 9.650343 | L63: 9.62344 | M63: 7.107799 | N63: 4.59545 | O63: 9.636292 | P63: 9.415541 | Q63: 9.646826 | R63: 9.099858
B65: PM2_5E Emissions - kg/24hr
B66: PM2_5E Total | C66: =INDEX($H66:$R66,1,C$6) -> 69.068786 | D66: =INDEX($H66:$R66,1,D$6) -> 69.012664 | E66: -0.056122 | F66: -0.0008125522866 | H66: 69.048439 | I66: 69.225669 | J66: 69.044273 | K66: 69.073532 | L66: 69.064842 | M66: 1248.33142 | N66: 51.846832 | O66: 69.012664 | P66: 69.068786 | Q66: 69.030586 | R66: 69.582946
B67: PM2_5E Total/capita | C67: =INDEX($H67:$R67,1,C$6) -> 2.7e-05 | D67: =INDEX($H67:$R67,1,D$6) -> 2.7e-05 | E67: 0 | F67: 0 | H67: 2.7e-05 | I67: 2.7e-05 | J67: 2.7e-05 | K67: 2.7e-05 | L67: 2.7e-05 | M67: 0.000745 | N67: 3.1e-05 | O67: 2.7e-05 | P67: 2.7e-05 | Q67: 2.7e-05 | R67: 2.8e-05
B68: PM2_5E Total less than 8.5t | C68: 29.930446 | D68: 29.847646 | E68: -0.0828 | F68: -0.002766413838 | H68: 29.849626 | I68: 29.957193 | J68: 29.906251 | K68: 29.834049 | L68: 29.799713 | M68: 821.941223 | N68: 23.253837 | O68: 29.847646 | P68: 29.930446 | Q68: 29.854934 | R68: 30.012357
B69: PM2_5E Total more than 8.5t | C69: 35.811157 | D69: 35.765209 | E69: -0.045948 | F69: -0.001283063823 | H69: 35.793296 | I69: 35.856578 | J69: 35.805335 | K69: 35.832969 | L69: 35.863922 | M69: 399.451751 | N69: 26.746173 | O69: 35.765209 | P69: 35.811157 | Q69: 35.773593 | R69: 36.318344
B70: PM2_5E Buses | C70: 3.327171 | D70: 3.399802 | E70: 0.072631 | F70: 0.02182965649 | H70: 3.40552 | I70: 3.411893 | J70: 3.332691 | K70: 3.406517 | L70: 3.401207 | M70: 26.938539 | N70: 1.846819 | O70: 3.399802 | P70: 3.327171 | Q70: 3.402053 | R70: 3.252246
B72: PM2_5BT Emissions - kg/24hr
B73: PM2_5BT Total | C73: =INDEX($H73:$R73,1,C$6) -> 0 | D73: =INDEX($H73:$R73,1,D$6) -> 0 | E73: 0
B74: PM2_5BT Total/capita | C74: =INDEX($H74:$R74,1,C$6) -> 0 | D74: =INDEX($H74:$R74,1,D$6) -> 0 | E74: 0
B75: PM2_5BT Total less than 8.5t | C75: 0 | D75: 0 | E75: 0
B76: PM2_5BT Total more than 8.5t | C76: 0 | D76: 0 | E76: 0
B77: PM2_5BT Buses | C77: 0 | D77: 0 | E77: 0
B79: SO2 Emissions - kg/24hr | Z79: Population
B80: SO2 Total | C80: =INDEX($H80:$R80,1,C$6) -> 0 | D80: =INDEX($H80:$R80,1,D$6) -> 0 | E80: 0
B81: SO2 Total/capita | C81: =INDEX($H81:$R81,1,C$6) -> 0 | D81: =INDEX($H81:$R81,1,D$6) -> 0 | E81: 0 | Z81: 2016 | AA81: 2023 | AB81: 2028 | AD81: 2033 | AE81: 2038 | AF81: 2043 | AG81: 2048+
B82: SO2 Total less than 8.5t | C82: 0 | D82: 0 | E82: =D82-C82 -> 0 | F82: =E82/C82 ->  | Z82: 1588360.492 | AA82: 1834470.751 | AB82: 1963021.12 | AD82: 0 | AE82: 2194392.126 | AF82: 0 | AG82: 2528313.553
B83: SO2 Total more than 8.5t | C83: 0 | D83: 0 | E83: 0
B84: SO2 Buses | C84: 0 | D84: 0 | E84: 0 | F84: =E84/C84 ->  | Z84: est 2018 | AA84: =+(AA82-Z82)/7*2+Z82 -> 1658677.708
B86: Fuel Consumption - l/24hr
B87: Fuel Total | C87: =INDEX($H87:$R87,1,C$6) -> 1830719.37 | D87: =INDEX($H87:$R87,1,D$6) -> 1827614.62 | E87: -3104.75 | F87: -0.001695918037 | H87: 1828156.75 | I87: 1833576.5 | J87: 1829725.62 | K87: 1827880 | L87: 1826807.12 | M87: 3652557.75 | N87: 1392281.75 | O87: 1827614.62 | P87: 1830719.37 | Q87: 1828099 | R87: 1841283 | Z87: 6 | AA87: 7 | AB87: 11 | AD87: 8
B88: Fuel Total/capita | C88: =INDEX($H88:$R88,1,C$6) -> 0.724087 | D88: =INDEX($H88:$R88,1,D$6) -> 0.722859 | E88: -0.001228 | F88: -0.001695928804 | H88: 0.723074 | I88: 0.725217 | J88: 0.723694 | K88: 0.722964 | L88: 0.72254 | M88: 2.181035 | N88: 0.831367 | O88: 0.722859 | P88: 0.724087 | Q88: 0.723051 | R88: 0.728265 | Z88: 2018 | AA88: 2018 with 48 Rates | AB88: 2048 Do Min | AD88: 2048 South
B89: Fuel Total less than 8.5t | C89: 1226834 | D89: 1223173.5 | E89: -3660.5 | F89: -0.002983696246 | H89: 1223265.75 | I89: 1228065.75 | J89: 1225703 | K89: 1222766.5 | L89: 1221601.37 | M89: 3016060.75 | N89: 976729.625 | O89: 1223173.5 | P89: 1226834 | Q89: 1223516 | R89: 1234156.62 | Y89: VKT | Z89: =INDEX($H94:$R94,1,Z$87) -> 36779092 | AA89: =INDEX($H94:$R94,1,AA$87) -> 36779092 | AB89: 51971832 | AD89: 51929272
B90: Fuel Total more than 8.5t | C90: 558687.625 | D90: 558246.25 | E90: -441.375 | F90: -0.0007900210784 | H90: 558608 | I90: 559160.437 | J90: 558736.687 | K90: 558819.75 | L90: 559003.75 | M90: 601054.812 | N90: 392503 | O90: 558246.25 | P90: 558687.625 | Q90: 558345.125 | R90: 563068.562 | Y90: Pop | Z90: =INDEX($H15:$R15,1,Z$87) -> 1658677.708 | AA90: =INDEX($H15:$R15,1,AA$87) -> 1658677.708 | AB90: 2528313.553 | AD90: 2528313.553
B91: Fuel Buses | C91: 45197.6015 | D91: 46194.8281 | E91: 997.2266 | F91: 0.02206370619 | H91: 46282.9687 | I91: 46350.3085 | J91: 45285.8242 | K91: 46293.6914 | L91: 46201.8906 | M91: 35441.996 | N91: 23049.1621 | O91: 46194.8281 | P91: 45197.6015 | Q91: 46237.7734 | R91: 44057.8281 | Y91: CO2 (kg) | Z91: =INDEX($H24:$R24,1,Z$87) -> 9005654 | AA91: =INDEX($H24:$R24,1,AA$87) -> 3371024 | AB91: 4474730.5 | AD91: 4440592.5
Y92: CO2/Pop | Z92: =INDEX($H25:$R25,1,Z$87) -> 5.377503 | AA92: =INDEX($H25:$R25,1,AA$87) -> 2.012923 | AB92: 1.769848 | AD92: 1.756346
B93: VKT / 24hr
B94: VKT Total | C94: =INDEX($H94:$R94,1,C$6) -> 52047676 | D94: =INDEX($H94:$R94,1,D$6) -> 51929272 | E94: -118404 | F94: =E94/C94 -> -0.002274914254 | H94: 51919512 | I94: 52069120 | J94: 52007096 | K94: 51866780 | L94: 51775316 | M94: 36779092 | N94: 36779092 | O94: 51929272 | P94: 52047676 | Q94: 51940048 | R94: 51971832
B95: VKT Total/capita | C95: =INDEX($H95:$R95,1,C$6) -> 20.585926 | D95: =INDEX($H95:$R95,1,D$6) -> 20.539094 | E95: -0.046832 | F95: -0.002274952315 | H95: 20.535234 | I95: 20.594408 | J95: 20.569875 | K95: 20.514377 | L95: 20.478202 | M95: 21.961725 | N95: 21.961725 | O95: 20.539094 | P95: 20.585926 | Q95: 20.543357 | R95: 20.555929
B96: VKT Total less than 8.5t | C96: 47966160 | D96: 47842320 | E96: -123840 | F96: -0.002581820183 | H96: 47830556 | I96: 47981664 | J96: 47923140 | K96: 47780584 | L96: 47691956 | M96: 34092740 | N96: 34092740 | O96: 47842320 | P96: 47966160 | Q96: 47852336 | R96: 47909492 | Z96: 2018 | AA96: 2018 with 48 Rates | AB96: 2048 Do Min | AD96: 2048 South
B97: VKT Total more than 8.5t | C97: 3856107.5 | D97: 3856345 | E97: 237.5 | F97: 6.159060659e-05 | H97: 3857786 | I97: 3856283.25 | J97: 3857927.75 | K97: 3855028.5 | L97: 3852978.5 | M97: 2584261.25 | N97: 2584261.25 | O97: 3856345 | P97: 3856107.5 | Q97: 3856706.75 | R97: 3844702.5 | Y97: VKT | Z97: =+Z89/$Z89 -> 1 | AA97: =+AA89/$Z89 -> 1 | AB97: 1.413080888 | AD97: 1.411923709
B98: VKT Buses | C98: 225404.609 | D98: 230606.468 | E98: 5201.859 | F98: 0.02307787327 | H98: 231171.64 | I98: 231171.64 | J98: 226026.171 | K98: 231171.64 | L98: 230386.39 | M98: 102092.39 | N98: 102092.39 | O98: 230606.468 | P98: 225404.609 | Q98: 231003.281 | R98: 217637.75 | Y98: Pop | Z98: =+Z90/$Z90 -> 1 | AA98: 1 | AB98: 1.524294648 | AD98: 1.524294648
Y99: CO2 (kg) | Z99: =+Z91/$Z91 -> 1 | AA99: 0.3743230642 | AB99: 0.4968801266 | AD99: 0.4930893969
Y100: CO2/Pop | Z100: =+Z92/$Z92 -> 1 | AA100: 0.3743229897 | AB100: 0.3291207834 | AD100: 0.3266099526
